[Event "Titled Tuesday Blitz May 03 Early 2022"]
[White "Devaev, Alexander"]
[Black "Horcajuelo Rocamora, Martin"]
[WhiteFideId "4169395"]
[BlackFideId "24573027"]
[WhiteElo "2185"]
[BlackElo "1822"]
[Result "1-0"]
[Round "06"]
[TimeControl "180+1"]
[Date "2022.05.03"]
[WhiteClock "0:00:19"]
[BlackClock "0:00:13"]

1. d4 {[%clk 0:02:57]}  Nf6 {[%clk 0:02:59]} 2. c4 {[%clk 0:02:57]}  c5 {[%clk 0:02:59]} 3. d5 {[%clk 0:02:57]}  e6 {[%clk 0:02:59]} 4. Nc3 {[%clk 0:02:56]}  exd5 {[%clk 0:02:59]} 5. cxd5 {[%clk 0:02:57]}  d6 {[%clk 0:03:00]} 6. e4 {[%clk 0:02:58]}  g6 {[%clk 0:03:01]} 7. Nf3 {[%clk 0:02:59]}  Bg7 {[%clk 0:03:01]} 8. Bd3 {[%clk 0:02:59]}  Bg4 {[%clk 0:03:01]} 9. Qa4+ {[%clk 0:02:59]}  Nbd7 {[%clk 0:03:00]} 10. Nd2 {[%clk 0:02:59]}  a6 {[%clk 0:02:55]} 11. Qc2 {[%clk 0:02:57]}  Ne5 {[%clk 0:02:45]} 12. Bf1 {[%clk 0:02:49]}  b5 {[%clk 0:02:36]} 13. h3 {[%clk 0:02:49]}  Bc8 {[%clk 0:02:28]} 14. a4 {[%clk 0:02:44]}  b4 {[%clk 0:02:25]} 15. Nd1 {[%clk 0:02:44]}  O-O {[%clk 0:02:24]} 16. Be2 {[%clk 0:02:43]}  Re8 {[%clk 0:02:22]} 17. O-O {[%clk 0:02:44]}  Bb7 {[%clk 0:02:07]} 18. Ne3 {[%clk 0:02:43]}  Rc8 {[%clk 0:01:55]} 19. b3 {[%clk 0:02:43]}  a5 {[%clk 0:01:49]} 20. Bb2 {[%clk 0:02:44]}  Qc7 {[%clk 0:01:37]} 21. f4 {[%clk 0:02:40]}  Ned7 {[%clk 0:01:30]} 22. Bf3 {[%clk 0:02:40]}  Bh6 {[%clk 0:01:24]} 23. Be2 {[%clk 0:02:32]}  Nxd5 {[%clk 0:01:07]} 24. Ng4 {[%clk 0:02:14]}  Bg7 {[%clk 0:01:03]} 25. Bb5 {[%clk 0:01:45]}  Nc3 {[%clk 0:00:56]} 26. Rae1 {[%clk 0:01:33]}  h5 {[%clk 0:00:48]} 27. Nh2 {[%clk 0:01:25]}  Nxb5 {[%clk 0:00:40]} 28. Bxg7 {[%clk 0:01:10]}  Kxg7 {[%clk 0:00:26]} 29. axb5 {[%clk 0:01:09]}  Nf6 {[%clk 0:00:23]} 30. Qb2 {[%clk 0:01:06]}  Qd8 {[%clk 0:00:19]} 31. e5 {[%clk 0:00:43]}  dxe5 {[%clk 0:00:19]} 32. fxe5 {[%clk 0:00:43]}  Nd5 {[%clk 0:00:20]} 33. e6+ {[%clk 0:00:40]}  f6 {[%clk 0:00:20]} 34. Nhf3 {[%clk 0:00:31]}  Nc3 {[%clk 0:00:20]} 35. Kh1 {[%clk 0:00:26]}  Qd3 {[%clk 0:00:20]} 36. Nc4 {[%clk 0:00:23]}  Bd5 {[%clk 0:00:19]} 37. Nd6 {[%clk 0:00:22]}  Bxf3 {[%clk 0:00:18]} 38. Nxe8+ {[%clk 0:00:21]}  Rxe8 {[%clk 0:00:19]} 39. Rxf3 {[%clk 0:00:22]}  Qd5 {[%clk 0:00:20]} 40. Qf2 {[%clk 0:00:21]}  Rxe6 {[%clk 0:00:19]} 41. Rxe6 {[%clk 0:00:20]}  Qxe6 {[%clk 0:00:20]} 42. Re3 {[%clk 0:00:20]}  Qd6 {[%clk 0:00:19]} 43. Qe1 {[%clk 0:00:20]}  Kh6 {[%clk 0:00:19]} 44. Re6 {[%clk 0:00:20]}  Qf4 {[%clk 0:00:19]} 45. b6 {[%clk 0:00:20]}  Nd5 {[%clk 0:00:18]} 46. b7 {[%clk 0:00:20]}  Qc7 {[%clk 0:00:17]} 47. Qd2+ {[%clk 0:00:20]}  Nf4 {[%clk 0:00:17]} 48. Re7 {[%clk 0:00:19]}  Qxb7 {[%clk 0:00:13]} 49. Qxf4+ {[%clk 0:00:18]}  g5 {[%clk 0:00:13]} 50. Qxf6# {[%clk 0:00:19]} 1-0


[Site "https://www.chess.com"]

[Event "Titled Tuesday Blitz May 03 Early 2022"]
[White "Djordjevic, Vuk"]
[Black "Rasulov, Vugar"]
[WhiteFideId "902098"]
[BlackFideId "13402390"]
[WhiteElo "2496"]
[BlackElo "2560"]
[Result "1/2-1/2"]
[Round "06"]
[TimeControl "180+1"]
[Date "2022.05.03"]
[WhiteClock "0:00:06"]
[BlackClock "0:00:21"]

1. d4 {[%clk 0:03:00]}  Nf6 {[%clk 0:02:59]} 2. Bg5 {[%clk 0:03:01]}  Ne4 {[%clk 0:02:58]} 3. Bf4 {[%clk 0:03:01]}  d5 {[%clk 0:02:58]} 4. e3 {[%clk 0:03:01]}  c5 {[%clk 0:02:58]} 5. Bd3 {[%clk 0:03:01]}  cxd4 {[%clk 0:02:57]} 6. exd4 {[%clk 0:03:01]}  Nd6 {[%clk 0:02:55]} 7. c3 {[%clk 0:02:55]}  Nc6 {[%clk 0:02:55]} 8. Na3 {[%clk 0:02:48]}  g6 {[%clk 0:02:53]} 9. h4 {[%clk 0:02:41]}  h6 {[%clk 0:02:51]} 10. Nc2 {[%clk 0:02:35]}  Bg7 {[%clk 0:02:51]} 11. Nf3 {[%clk 0:02:30]}  Qb6 {[%clk 0:02:41]} 12. Qe2 {[%clk 0:02:15]}  Ne4 {[%clk 0:02:27]} 13. Ne3 {[%clk 0:02:04]}  Be6 {[%clk 0:02:19]} 14. Nc4 {[%clk 0:01:50]}  Qd8 {[%clk 0:02:06]} 15. Nce5 {[%clk 0:01:46]}  O-O {[%clk 0:01:58]} 16. Bxe4 {[%clk 0:01:35]}  dxe4 {[%clk 0:01:58]} 17. Qxe4 {[%clk 0:01:36]}  Bd5 {[%clk 0:01:56]} 18. Qe3 {[%clk 0:01:33]}  h5 {[%clk 0:01:53]} 19. O-O {[%clk 0:01:26]}  Re8 {[%clk 0:01:43]} 20. Rfe1 {[%clk 0:01:14]}  e6 {[%clk 0:01:39]} 21. b3 {[%clk 0:00:47]}  Ne7 {[%clk 0:01:33]} 22. Rad1 {[%clk 0:00:27]}  Nf5 {[%clk 0:01:33]} 23. Qd2 {[%clk 0:00:28]}  b5 {[%clk 0:01:24]} 24. c4 {[%clk 0:00:26]}  bxc4 {[%clk 0:01:24]} 25. bxc4 {[%clk 0:00:26]}  Bb7 {[%clk 0:01:23]} 26. Rb1 {[%clk 0:00:16]}  Bxf3 {[%clk 0:01:17]} 27. Nxf3 {[%clk 0:00:17]}  Nxh4 {[%clk 0:01:17]} 28. Nxh4 {[%clk 0:00:09]}  Qxh4 {[%clk 0:01:18]} 29. Rb7 {[%clk 0:00:08]}  Rad8 {[%clk 0:01:10]} 30. g3 {[%clk 0:00:07]}  Qg4 {[%clk 0:01:09]} 31. d5 {[%clk 0:00:07]}  exd5 {[%clk 0:01:04]} 32. Rxe8+ {[%clk 0:00:07]}  Rxe8 {[%clk 0:01:05]} 33. Qxd5 {[%clk 0:00:08]}  Re6 {[%clk 0:00:56]} 34. Kg2 {[%clk 0:00:02]}  h4 {[%clk 0:00:55]} 35. Rxa7 {[%clk 0:00:02]}  Bf6 {[%clk 0:00:42]} 36. Ra8+ {[%clk 0:00:01]}  Kh7 {[%clk 0:00:42]} 37. Ra3 {[%clk 0:00:01]}  g5 {[%clk 0:00:38]} 38. Qf3 {[%clk 0:00:01]}  Qxf3+ {[%clk 0:00:38]} 39. Rxf3 {[%clk 0:00:02]}  gxf4 {[%clk 0:00:39]} 40. Rxf4 {[%clk 0:00:03]}  hxg3 {[%clk 0:00:39]} 41. fxg3 {[%clk 0:00:04]}  Kg6 {[%clk 0:00:39]} 42. Kh3 {[%clk 0:00:04]}  Ra6 {[%clk 0:00:39]} 43. Rf2 {[%clk 0:00:04]}  Rc6 {[%clk 0:00:39]} 44. Rc2 {[%clk 0:00:04]}  Bd4 {[%clk 0:00:39]} 45. Kg4 {[%clk 0:00:03]}  Be5 {[%clk 0:00:38]} 46. Kf3 {[%clk 0:00:03]}  Kf5 {[%clk 0:00:37]} 47. g4+ {[%clk 0:00:03]}  Ke6 {[%clk 0:00:38]} 48. Ke4 {[%clk 0:00:02]}  f6 {[%clk 0:00:37]} 49. c5 {[%clk 0:00:02]}  Bc7 {[%clk 0:00:31]} 50. Rc4 {[%clk 0:00:02]}  Bb6 {[%clk 0:00:27]} 51. Kd4 {[%clk 0:00:02]}  Rxc5 {[%clk 0:00:22]} 52. Rxc5 {[%clk 0:00:02]}  Kd6 {[%clk 0:00:22]} 53. Ke4 {[%clk 0:00:02]}  Bxc5 {[%clk 0:00:23]} 54. Kf5 {[%clk 0:00:03]}  Bd4 {[%clk 0:00:19]} 55. g5 {[%clk 0:00:03]}  fxg5 {[%clk 0:00:19]} 56. Kxg5 {[%clk 0:00:04]}  Kc5 {[%clk 0:00:20]} 57. Kg4 {[%clk 0:00:05]}  Kb4 {[%clk 0:00:20]} 58. a3+ {[%clk 0:00:06]}  Kxa3 {[%clk 0:00:21]} 1/2-1/2


[Site "https://www.chess.com"]

[Event "Titled Tuesday Blitz May 03 Early 2022"]
[White "Dubov, Daniil"]
[Black "Stribuk, Artiom"]
[WhiteFideId "24126055"]
[BlackFideId "13515659"]
[WhiteElo "2791"]
[BlackElo "2259"]
[Result "1-0"]
[Round "06"]
[TimeControl "180+1"]
[Date "2022.05.03"]
[WhiteClock "0:00:30"]
[BlackClock "0:00:02"]

1. d4 {[%clk 0:03:00]}  Nf6 {[%clk 0:03:00]} 2. Nf3 {[%clk 0:03:01]}  g6 {[%clk 0:02:59]} 3. c4 {[%clk 0:03:02]}  c5 {[%clk 0:02:58]} 4. d5 {[%clk 0:03:00]}  b5 {[%clk 0:02:59]} 5. cxb5 {[%clk 0:02:59]}  a6 {[%clk 0:02:59]} 6. b6 {[%clk 0:02:59]}  d6 {[%clk 0:02:59]} 7. Nc3 {[%clk 0:02:57]}  Nbd7 {[%clk 0:02:59]} 8. e4 {[%clk 0:02:56]}  Bg7 {[%clk 0:02:56]} 9. Be2 {[%clk 0:02:54]}  O-O {[%clk 0:02:56]} 10. a4 {[%clk 0:02:53]}  a5 {[%clk 0:02:51]} 11. O-O {[%clk 0:02:53]}  Nxb6 {[%clk 0:02:49]} 12. Re1 {[%clk 0:02:51]}  Bg4 {[%clk 0:02:43]} 13. Bg5 {[%clk 0:02:41]}  h6 {[%clk 0:02:26]} 14. Bh4 {[%clk 0:02:40]}  Nfd7 {[%clk 0:01:45]} 15. Nd2 {[%clk 0:02:30]}  Bxe2 {[%clk 0:01:43]} 16. Qxe2 {[%clk 0:02:31]}  Re8 {[%clk 0:01:19]} 17. h3 {[%clk 0:02:10]}  Qb8 {[%clk 0:00:59]} 18. Kh1 {[%clk 0:01:57]}  Nc8 {[%clk 0:00:48]} 19. Nb5 {[%clk 0:01:50]}  Na7 {[%clk 0:00:46]} 20. Na3 {[%clk 0:01:36]}  Qxb2 {[%clk 0:00:28]} 21. Nac4 {[%clk 0:01:22]}  Qb7 {[%clk 0:00:27]} 22. Rab1 {[%clk 0:01:15]}  Qa6 {[%clk 0:00:26]} 23. f4 {[%clk 0:01:11]}  Nc8 {[%clk 0:00:17]} 24. e5 {[%clk 0:01:04]}  dxe5 {[%clk 0:00:06]} 25. fxe5 {[%clk 0:01:04]}  e6 {[%clk 0:00:06]} 26. d6 {[%clk 0:00:56]}  Ncb6 {[%clk 0:00:06]} 27. Nxb6 {[%clk 0:00:45]}  Nxb6 {[%clk 0:00:05]} 28. Qxa6 {[%clk 0:00:46]}  Rxa6 {[%clk 0:00:06]} 29. Rxb6 {[%clk 0:00:46]}  Rxb6 {[%clk 0:00:06]} 30. d7 {[%clk 0:00:47]}  Ra8 {[%clk 0:00:04]} 31. d8=Q+ {[%clk 0:00:47]}  Rxd8 {[%clk 0:00:05]} 32. Bxd8 {[%clk 0:00:47]}  Rb4 {[%clk 0:00:05]} 33. Bxa5 {[%clk 0:00:45]}  Rxa4 {[%clk 0:00:06]} 34. Bc3 {[%clk 0:00:45]}  Ra3 {[%clk 0:00:05]} 35. Ne4 {[%clk 0:00:44]}  c4 {[%clk 0:00:04]} 36. Rc1 {[%clk 0:00:43]}  g5 {[%clk 0:00:03]} 37. Kg1 {[%clk 0:00:36]}  Kh7 {[%clk 0:00:03]} 38. Bd4 {[%clk 0:00:33]}  Ra4 {[%clk 0:00:02]} 39. Nd6 {[%clk 0:00:30]} 1-0


[Site "https://www.chess.com"]

[Event "Titled Tuesday Blitz May 03 Early 2022"]
[White "Ezat, Mohamed"]
[Black "Zlatin, Alexander"]
[WhiteFideId "10600906"]
[BlackFideId "2810549"]
[WhiteElo "2386"]
[BlackElo "2228"]
[Result "1/2-1/2"]
[Round "06"]
[TimeControl "180+1"]
[Date "2022.05.03"]
[WhiteClock "0:00:07"]
[BlackClock "0:00:07"]

1. d4 {[%clk 0:02:49]}  d5 {[%clk 0:02:58]} 2. c4 {[%clk 0:02:49]}  e6 {[%clk 0:02:58]} 3. Nc3 {[%clk 0:02:49]}  c5 {[%clk 0:02:58]} 4. cxd5 {[%clk 0:02:49]}  cxd4 {[%clk 0:02:59]} 5. Qxd4 {[%clk 0:02:48]}  Nc6 {[%clk 0:02:59]} 6. Qd1 {[%clk 0:02:48]}  exd5 {[%clk 0:02:59]} 7. e3 {[%clk 0:02:46]}  Nf6 {[%clk 0:02:59]} 8. Be2 {[%clk 0:02:46]}  Bb4 {[%clk 0:02:58]} 9. Nf3 {[%clk 0:02:46]}  O-O {[%clk 0:02:58]} 10. O-O {[%clk 0:02:46]}  Bg4 {[%clk 0:02:59]} 11. Nb5 {[%clk 0:02:45]}  a6 {[%clk 0:02:56]} 12. Nbd4 {[%clk 0:02:45]}  Bd6 {[%clk 0:02:54]} 13. Bd2 {[%clk 0:02:43]}  Rc8 {[%clk 0:02:54]} 14. Rc1 {[%clk 0:02:42]}  Re8 {[%clk 0:02:54]} 15. h3 {[%clk 0:02:38]}  Nxd4 {[%clk 0:02:48]} 16. Nxd4 {[%clk 0:02:37]}  Bxe2 {[%clk 0:02:47]} 17. Qxe2 {[%clk 0:02:37]}  Qd7 {[%clk 0:02:43]} 18. a3 {[%clk 0:02:31]}  Ne4 {[%clk 0:02:43]} 19. Rxc8 {[%clk 0:02:29]}  Rxc8 {[%clk 0:02:42]} 20. Rc1 {[%clk 0:02:26]}  Rxc1+ {[%clk 0:02:42]} 21. Bxc1 {[%clk 0:02:26]}  Qc7 {[%clk 0:02:20]} 22. Qc2 {[%clk 0:02:16]}  Qxc2 {[%clk 0:02:19]} 23. Nxc2 {[%clk 0:02:15]}  Be5 {[%clk 0:02:16]} 24. Kf1 {[%clk 0:02:01]}  Nc5 {[%clk 0:02:14]} 25. Ke2 {[%clk 0:01:57]}  a5 {[%clk 0:02:05]} 26. b4 {[%clk 0:01:37]}  Nb3 {[%clk 0:01:44]} 27. Bd2 {[%clk 0:01:37]}  a4 {[%clk 0:01:41]} 28. Kd3 {[%clk 0:01:22]}  b5 {[%clk 0:01:24]} 29. g4 {[%clk 0:01:10]}  Kf8 {[%clk 0:01:15]} 30. f4 {[%clk 0:01:08]}  Bb2 {[%clk 0:01:05]} 31. Be1 {[%clk 0:00:53]}  Ke7 {[%clk 0:01:01]} 32. e4 {[%clk 0:00:52]}  dxe4+ {[%clk 0:00:49]} 33. Kxe4 {[%clk 0:00:52]}  Ke6 {[%clk 0:00:43]} 34. f5+ {[%clk 0:00:52]}  Kd6 {[%clk 0:00:42]} 35. Bg3+ {[%clk 0:00:52]}  Kc6 {[%clk 0:00:41]} 36. Be5 {[%clk 0:00:50]}  Nd2+ {[%clk 0:00:36]} 37. Kf4 {[%clk 0:00:49]}  Bxe5+ {[%clk 0:00:29]} 38. Kxe5 {[%clk 0:00:50]}  Nc4+ {[%clk 0:00:29]} 39. Kd4 {[%clk 0:00:50]}  f6 {[%clk 0:00:25]} 40. Ke4 {[%clk 0:00:49]}  Nd6+ {[%clk 0:00:23]} 41. Kd3 {[%clk 0:00:48]}  Nc4 {[%clk 0:00:24]} 42. Kc3 {[%clk 0:00:45]}  Kd5 {[%clk 0:00:21]} 43. Kd3 {[%clk 0:00:44]}  Ke5 {[%clk 0:00:20]} 44. Nd4 {[%clk 0:00:34]}  Nxa3 {[%clk 0:00:19]} 45. Ne6 {[%clk 0:00:26]}  g6 {[%clk 0:00:15]} 46. fxg6 {[%clk 0:00:23]}  hxg6 {[%clk 0:00:15]} 47. Nc7 {[%clk 0:00:23]}  Kd6 {[%clk 0:00:13]} 48. Ne8+ {[%clk 0:00:22]}  Ke5 {[%clk 0:00:13]} 49. Nc7 {[%clk 0:00:22]}  Kd6 {[%clk 0:00:11]} 50. Ne8+ {[%clk 0:00:21]}  Ke7 {[%clk 0:00:11]} 51. Nc7 {[%clk 0:00:21]}  Kd7 {[%clk 0:00:11]} 52. Nd5 {[%clk 0:00:20]}  f5 {[%clk 0:00:06]} 53. gxf5 {[%clk 0:00:19]}  gxf5 {[%clk 0:00:07]} 54. h4 {[%clk 0:00:19]}  Nc4 {[%clk 0:00:06]} 55. Nc3 {[%clk 0:00:14]}  Nd6 {[%clk 0:00:06]} 56. Kd4 {[%clk 0:00:13]}  f4 {[%clk 0:00:05]} 57. h5 {[%clk 0:00:12]}  Ke6 {[%clk 0:00:05]} 58. h6 {[%clk 0:00:12]}  Nf5+ {[%clk 0:00:03]} 59. Ke4 {[%clk 0:00:11]}  Nxh6 {[%clk 0:00:03]} 60. Nxb5 {[%clk 0:00:11]}  f3 {[%clk 0:00:03]} 61. Kxf3 {[%clk 0:00:10]}  Nf5 {[%clk 0:00:04]} 62. Na3 {[%clk 0:00:11]}  Nd4+ {[%clk 0:00:04]} 63. Ke4 {[%clk 0:00:11]}  Nc6 {[%clk 0:00:04]} 64. b5 {[%clk 0:00:11]}  Na5 {[%clk 0:00:05]} 65. Kd4 {[%clk 0:00:10]}  Kd6 {[%clk 0:00:05]} 66. Nc2 {[%clk 0:00:07]}  Nb3+ {[%clk 0:00:05]} 67. Kc4 {[%clk 0:00:07]}  Nd2+ {[%clk 0:00:05]} 68. Kb4 {[%clk 0:00:07]}  Ne4 {[%clk 0:00:05]} 69. Ne3 {[%clk 0:00:07]}  Kc7 {[%clk 0:00:05]} 70. Nd5+ {[%clk 0:00:07]}  Kb7 {[%clk 0:00:05]} 71. Kxa4 {[%clk 0:00:07]}  Nd6 {[%clk 0:00:05]} 72. b6 {[%clk 0:00:07]}  Nc8 {[%clk 0:00:06]} 73. Kb5 {[%clk 0:00:07]}  Nxb6 {[%clk 0:00:07]} 1/2-1/2


[Site "https://www.chess.com"]

[Event "Titled Tuesday Blitz May 03 Early 2022"]
[White "Fernandez Siles, Luis"]
[Black "Cramling Bellon, Anna"]
[WhiteFideId "2209420"]
[BlackFideId "32009232"]
[WhiteElo "2212"]
[BlackElo "1905"]
[Result "1-0"]
[Round "06"]
[TimeControl "180+1"]
[Date "2022.05.03"]
[WhiteClock "0:00:33"]
[BlackClock "0:00:02"]

1. e4 {[%clk 0:03:00]}  c5 {[%clk 0:02:59]} 2. c3 {[%clk 0:02:59]}  Nf6 {[%clk 0:02:58]} 3. e5 {[%clk 0:02:59]}  Nd5 {[%clk 0:02:58]} 4. d4 {[%clk 0:02:58]}  cxd4 {[%clk 0:02:58]} 5. Nf3 {[%clk 0:02:59]}  e6 {[%clk 0:02:44]} 6. Bc4 {[%clk 0:02:57]}  Nb6 {[%clk 0:02:42]} 7. Bb3 {[%clk 0:02:57]}  d6 {[%clk 0:02:37]} 8. cxd4 {[%clk 0:02:56]}  Nc6 {[%clk 0:02:37]} 9. exd6 {[%clk 0:02:52]}  Bxd6 {[%clk 0:02:38]} 10. O-O {[%clk 0:02:50]}  O-O {[%clk 0:02:36]} 11. Nc3 {[%clk 0:02:51]}  Bd7 {[%clk 0:02:20]} 12. Qe2 {[%clk 0:02:44]}  Rc8 {[%clk 0:02:14]} 13. Bc2 {[%clk 0:02:32]}  Bb8 {[%clk 0:02:06]} 14. Qe4 {[%clk 0:02:15]}  f5 {[%clk 0:02:04]} 15. Qe2 {[%clk 0:02:15]}  Qc7 {[%clk 0:02:02]} 16. g3 {[%clk 0:02:12]}  Nb4 {[%clk 0:01:57]} 17. Bb3 {[%clk 0:02:08]}  Qc6 {[%clk 0:01:45]} 18. Bg5 {[%clk 0:01:34]}  N4d5 {[%clk 0:01:31]} 19. Rac1 {[%clk 0:01:29]}  Qd6 {[%clk 0:01:25]} 20. Ne5 {[%clk 0:01:24]}  h6 {[%clk 0:01:04]} 21. Bd2 {[%clk 0:01:23]}  Bc6 {[%clk 0:00:40]} 22. Nxc6 {[%clk 0:01:05]}  bxc6 {[%clk 0:00:38]} 23. Rfe1 {[%clk 0:01:01]}  Rce8 {[%clk 0:00:31]} 24. Na4 {[%clk 0:00:52]}  f4 {[%clk 0:00:27]} 25. Nc5 {[%clk 0:00:47]}  f3 {[%clk 0:00:21]} 26. Qe4 {[%clk 0:00:46]}  Qe7 {[%clk 0:00:09]} 27. Na6 {[%clk 0:00:39]}  Qf7 {[%clk 0:00:06]} 28. Nxb8 {[%clk 0:00:39]}  Rxb8 {[%clk 0:00:03]} 29. Rxc6 {[%clk 0:00:36]}  Qh5 {[%clk 0:00:03]} 30. Qxe6+ {[%clk 0:00:36]}  Kh8 {[%clk 0:00:03]} 31. Re5 {[%clk 0:00:35]}  Qh3 {[%clk 0:00:03]} 32. Qxh3 {[%clk 0:00:35]}  Rbc8 {[%clk 0:00:02]} 33. Rxh6+ {[%clk 0:00:33]} 1-0


[Site "https://www.chess.com"]

[Event "Titled Tuesday Blitz May 03 Early 2022"]
[White "Gatterer, Florian"]
[Black "Mohammadian, Mohammad"]
[WhiteFideId "811688"]
[BlackFideId "12566055"]
[WhiteElo "2218"]
[BlackElo "1544"]
[Result "1-0"]
[Round "06"]
[TimeControl "180+1"]
[Date "2022.05.03"]
[WhiteClock "0:01:02"]
[BlackClock "0:00:31"]

1. d4 {[%clk 0:03:00]}  Nf6 {[%clk 0:02:58]} 2. Nf3 {[%clk 0:02:57]}  g6 {[%clk 0:02:57]} 3. g3 {[%clk 0:02:55]}  Bg7 {[%clk 0:02:57]} 4. Bg2 {[%clk 0:02:56]}  d5 {[%clk 0:02:56]} 5. O-O {[%clk 0:02:57]}  O-O {[%clk 0:02:54]} 6. c4 {[%clk 0:02:58]}  c6 {[%clk 0:02:51]} 7. Nc3 {[%clk 0:02:54]}  Bf5 {[%clk 0:02:48]} 8. Qb3 {[%clk 0:02:51]}  Qd7 {[%clk 0:02:34]} 9. Ne5 {[%clk 0:02:49]}  Qc7 {[%clk 0:02:21]} 10. cxd5 {[%clk 0:02:44]}  cxd5 {[%clk 0:02:14]} 11. Bxd5 {[%clk 0:02:43]}  Nxd5 {[%clk 0:02:13]} 12. Nxd5 {[%clk 0:02:35]}  Qd6 {[%clk 0:01:48]} 13. Bg5 {[%clk 0:02:32]}  Bxe5 {[%clk 0:01:44]} 14. dxe5 {[%clk 0:02:25]}  Qxe5 {[%clk 0:01:42]} 15. Nxe7+ {[%clk 0:01:57]}  Kg7 {[%clk 0:01:37]} 16. Nxf5+ {[%clk 0:01:48]}  gxf5 {[%clk 0:01:31]} 17. Qxb7 {[%clk 0:01:40]}  Nd7 {[%clk 0:01:19]} 18. Qxd7 {[%clk 0:01:35]}  f4 {[%clk 0:01:12]} 19. Bxf4 {[%clk 0:01:31]}  Qxb2 {[%clk 0:01:10]} 20. Qg4+ {[%clk 0:01:26]}  Kh8 {[%clk 0:01:06]} 21. a4 {[%clk 0:01:18]}  Rg8 {[%clk 0:01:06]} 22. Qf3 {[%clk 0:01:18]}  Rac8 {[%clk 0:01:02]} 23. Rab1 {[%clk 0:01:16]}  Qg7 {[%clk 0:00:58]} 24. Qe3 {[%clk 0:01:15]}  h5 {[%clk 0:00:53]} 25. Rb7 {[%clk 0:01:07]}  h4 {[%clk 0:00:53]} 26. Be5 {[%clk 0:01:07]}  hxg3 {[%clk 0:00:50]} 27. Bxg7+ {[%clk 0:01:06]}  Rxg7 {[%clk 0:00:50]} 28. fxg3 {[%clk 0:01:05]}  f6 {[%clk 0:00:33]} 29. Rxg7 {[%clk 0:01:04]}  Kxg7 {[%clk 0:00:32]} 30. Qe7+ {[%clk 0:01:03]}  Kg6 {[%clk 0:00:31]} 31. Qxf6+ {[%clk 0:01:02]} 1-0


[Site "https://www.chess.com"]

[Event "Titled Tuesday Blitz May 03 Early 2022"]
[White "Grischuk, Alexander"]
[Black "Thybo, Jesper Sondergaard"]
[WhiteFideId "4126025"]
[BlackFideId "1438832"]
[WhiteElo "2762"]
[BlackElo "2316"]
[Result "1/2-1/2"]
[Round "06"]
[TimeControl "180+1"]
[Date "2022.05.03"]
[WhiteClock "0:01:41"]
[BlackClock "0:00:32"]

1. d4 {[%clk 0:03:00]}  Nf6 {[%clk 0:02:59]} 2. c4 {[%clk 0:03:00]}  e6 {[%clk 0:02:59]} 3. Nc3 {[%clk 0:03:00]}  Bb4 {[%clk 0:02:58]} 4. e3 {[%clk 0:03:00]}  b6 {[%clk 0:02:54]} 5. Ne2 {[%clk 0:02:59]}  Bb7 {[%clk 0:02:54]} 6. a3 {[%clk 0:02:57]}  Be7 {[%clk 0:02:54]} 7. d5 {[%clk 0:02:57]}  O-O {[%clk 0:02:48]} 8. Ng3 {[%clk 0:02:55]}  Bd6 {[%clk 0:02:36]} 9. Be2 {[%clk 0:02:54]}  c6 {[%clk 0:02:32]} 10. dxe6 {[%clk 0:02:47]}  dxe6 {[%clk 0:02:31]} 11. O-O {[%clk 0:02:48]}  c5 {[%clk 0:02:25]} 12. b3 {[%clk 0:02:48]}  Be5 {[%clk 0:02:20]} 13. Bb2 {[%clk 0:02:48]}  Nc6 {[%clk 0:02:18]} 14. Qc2 {[%clk 0:02:47]}  Qe7 {[%clk 0:02:02]} 15. Rad1 {[%clk 0:02:47]}  Rad8 {[%clk 0:02:02]} 16. f4 {[%clk 0:02:45]}  Bc7 {[%clk 0:02:00]} 17. Bf3 {[%clk 0:02:43]}  Na5 {[%clk 0:01:51]} 18. Bxb7 {[%clk 0:02:41]}  Nxb7 {[%clk 0:01:52]} 19. Nce4 {[%clk 0:02:37]}  Nxe4 {[%clk 0:01:45]} 20. Nxe4 {[%clk 0:02:38]}  f6 {[%clk 0:01:45]} 21. Nc3 {[%clk 0:02:16]}  Rxd1 {[%clk 0:01:29]} 22. Rxd1 {[%clk 0:02:17]}  Rd8 {[%clk 0:01:30]} 23. g3 {[%clk 0:02:15]}  Rxd1+ {[%clk 0:01:27]} 24. Qxd1 {[%clk 0:02:16]}  Qd8 {[%clk 0:01:22]} 25. Qxd8+ {[%clk 0:02:14]}  Nxd8 {[%clk 0:01:21]} 26. Kf2 {[%clk 0:02:14]}  Kf7 {[%clk 0:01:20]} 27. Kf3 {[%clk 0:02:13]}  f5 {[%clk 0:01:18]} 28. g4 {[%clk 0:02:06]}  Nc6 {[%clk 0:01:16]} 29. Nb1 {[%clk 0:02:05]}  g6 {[%clk 0:01:00]} 30. Nd2 {[%clk 0:02:05]}  e5 {[%clk 0:00:57]} 31. h3 {[%clk 0:02:02]}  exf4 {[%clk 0:00:52]} 32. exf4 {[%clk 0:02:03]}  fxg4+ {[%clk 0:00:52]} 33. hxg4 {[%clk 0:02:01]}  h5 {[%clk 0:00:52]} 34. Bc3 {[%clk 0:02:00]}  hxg4+ {[%clk 0:00:48]} 35. Kxg4 {[%clk 0:02:01]}  Nd8 {[%clk 0:00:43]} 36. Nf3 {[%clk 0:01:53]}  Ne6 {[%clk 0:00:43]} 37. f5 {[%clk 0:01:53]}  gxf5+ {[%clk 0:00:41]} 38. Kxf5 {[%clk 0:01:54]}  Ke7 {[%clk 0:00:40]} 39. Ke4 {[%clk 0:01:51]}  Kd7 {[%clk 0:00:37]} 40. b4 {[%clk 0:01:48]}  cxb4 {[%clk 0:00:35]} 41. axb4 {[%clk 0:01:49]}  a5 {[%clk 0:00:34]} 42. Ne1 {[%clk 0:01:41]}  axb4 {[%clk 0:00:33]} 43. Bxb4 {[%clk 0:01:42]}  Bd6 {[%clk 0:00:33]} 44. Bc3 {[%clk 0:01:41]}  Kc6 {[%clk 0:00:32]} 45. Nd3 {[%clk 0:01:41]}  Nc5+ {[%clk 0:00:32]} 46. Nxc5 {[%clk 0:01:40]}  Bxc5 {[%clk 0:00:32]} 47. Kd3 {[%clk 0:01:41]}  b5 {[%clk 0:00:32]} 48. cxb5+ {[%clk 0:01:41]}  Kxb5 {[%clk 0:00:32]} 1/2-1/2


[Site "https://www.chess.com"]

[Event "Titled Tuesday Blitz May 03 Early 2022"]
[White "Halvax, Georg"]
[Black "Jones, Gawain C B"]
[WhiteFideId "1619543"]
[BlackFideId "409561"]
[WhiteElo "2403"]
[BlackElo "2657"]
[Result "0-1"]
[Round "06"]
[TimeControl "180+1"]
[Date "2022.05.03"]
[WhiteClock "0:00:38"]
[BlackClock "0:01:04"]

1. d4 {[%clk 0:02:57]}  Nf6 {[%clk 0:02:59]} 2. c4 {[%clk 0:02:57]}  d6 {[%clk 0:03:00]} 3. Nc3 {[%clk 0:02:55]}  Nbd7 {[%clk 0:03:00]} 4. e4 {[%clk 0:02:54]}  e5 {[%clk 0:03:00]} 5. Nge2 {[%clk 0:02:53]}  c5 {[%clk 0:02:58]} 6. d5 {[%clk 0:02:52]}  Be7 {[%clk 0:02:57]} 7. f3 {[%clk 0:02:51]}  Nh5 {[%clk 0:02:56]} 8. Be3 {[%clk 0:02:41]}  Bg5 {[%clk 0:02:54]} 9. Qd2 {[%clk 0:02:41]}  h6 {[%clk 0:02:53]} 10. g4 {[%clk 0:02:36]}  Nf4 {[%clk 0:02:39]} 11. Nxf4 {[%clk 0:02:32]}  exf4 {[%clk 0:02:39]} 12. Bxf4 {[%clk 0:02:32]}  Ne5 {[%clk 0:02:37]} 13. Be2 {[%clk 0:02:28]}  Qf6 {[%clk 0:02:34]} 14. Bxg5 {[%clk 0:02:27]}  hxg5 {[%clk 0:02:33]} 15. Qe3 {[%clk 0:02:23]}  Rh3 {[%clk 0:02:30]} 16. O-O-O {[%clk 0:02:04]}  Bxg4 {[%clk 0:02:22]} 17. Rdf1 {[%clk 0:02:00]}  Bxf3 {[%clk 0:02:17]} 18. Bxf3 {[%clk 0:01:59]}  g4 {[%clk 0:02:12]} 19. Ne2 {[%clk 0:01:45]}  Rxf3 {[%clk 0:02:02]} 20. Rxf3 {[%clk 0:01:44]}  gxf3 {[%clk 0:02:02]} 21. Ng3 {[%clk 0:01:40]}  Nxc4 {[%clk 0:02:02]} 22. Qb3 {[%clk 0:01:41]}  Qf4+ {[%clk 0:01:58]} 23. Kc2 {[%clk 0:01:39]}  Ne3+ {[%clk 0:01:50]} 24. Kb1 {[%clk 0:01:39]}  O-O-O {[%clk 0:01:41]} 25. Qd3 {[%clk 0:01:24]}  f2 {[%clk 0:01:34]} 26. Rc1 {[%clk 0:01:00]}  Rh8 {[%clk 0:01:30]} 27. a4 {[%clk 0:00:53]}  Rxh2 {[%clk 0:01:29]} 28. Qb5 {[%clk 0:00:53]}  Rh8 {[%clk 0:01:22]} 29. a5 {[%clk 0:00:52]}  a6 {[%clk 0:01:19]} 30. Qb6 {[%clk 0:00:49]}  Qxg3 {[%clk 0:01:18]} 31. Qa7 {[%clk 0:00:49]}  Rd8 {[%clk 0:01:07]} 32. b4 {[%clk 0:00:39]}  f1=Q {[%clk 0:01:05]} 33. Rxf1 {[%clk 0:00:38]}  Nxf1 {[%clk 0:01:06]} 34. bxc5 {[%clk 0:00:38]}  Qb3+ {[%clk 0:01:05]} 35. Kc1 {[%clk 0:00:38]}  Qc3+ {[%clk 0:01:04]} 0-1


[Site "https://www.chess.com"]